[Event "Netanya Open 2019"]
[Site "Netanya"]
[Date "2019.06.26"]
[Round "4.16"]
[White "Prraneeth Vuppala"]
[Black "Baron, Tal"]
[Result "0-1"]
[ECO "E01"]
[WhiteElo "2264"]
[BlackElo "2524"]
[Annotator "ChessBase"]
[PlyCount "126"]
[EventDate "2019.06.23"]
[EventType "swiss"]
[EventCountry "ISR"]
[SourceTitle "playchess.com"]
[Source "ChessBase"]
[SourceQuality "1"]
[TimeControl "40/5400+30:1800+30"]

1. d4 {[%emt 0:00:00]} d5 {[%emt 0:06:21]} 2. c4 {[%emt 0:00:00]} e6 {[%emt 0:00:03]} 3. Nf3 {[%emt 0:00:00]} Nf6 {[%emt 0:00:47]} 4. g3 {[%emt 0:00:00]} Bb4+ {[%emt 0:00:04]} 5. Bd2 {[%emt 0:00:05]} Bd6 {[%emt 0:00:02]} 6. Nc3 {[%emt 0:00:24]} Nc6 {[%emt 0:06:56]} 7. Bg5 {[%emt 0:29:06]} dxc4 {[%emt 0:01:17]} 8. Qa4 {[%emt 0:11:40]} h6 {[%emt 0:11:28]} 9. Bxf6 {[%emt 0:01:28]} Qxf6 {[%emt 0:00:06]} 10. Bg2 {[%emt 0:03:42]} O-O {[%emt 0:03:41]} 11. Qxc4 {[%emt 0:00:24]} e5 {[%emt 0:00:38]} 12. Ne4 {[%emt 0:17:02]} Qe7 {[%emt 0:02:58]} 13. O-O {[%emt 0:07:32]} exd4 {[%emt 0:01:34]} 14. Nxd4 {[%emt 0:01:14]} Nxd4 {[%emt 0:02:26]} 15. Qxd4 {[%emt 0:00:10]} Be5 {[%emt 0:00:15]} 16. Qc5 {[%emt 0:05:00]} Re8 {[%emt 0:02:01]} 17. Rfd1 {[%emt 0:04:30]} Bf5 {[%emt 0:01:44]} 18. Qxe7 {[%emt 0:02:06]} Rxe7 {[%emt 0:00:04]} 19. Rd2 {[%emt 0:01:21]} Rae8 {[%emt 0:08:31]} 20. Nc5 {[%emt 0:00:40]} b6 {[%emt 0:06:11]} 21. Nb7 {[%emt 0:01:21]} Bf6 {[%emt 0:07:34]} 22. e3 {[%emt 0:04:12]} Rd7 {[%emt 0:00:02]} 23. Rad1 {[%emt 0:01:10]} Rxd2 {[%emt 0:00:04]} 24. Rxd2 {[%emt 0:00:02]} Kf8 {[%emt 0:00:08]} 25. h3 {[%emt 0:04:28]} h5 {[%emt 0:00:34]} 26. Bf3 {[%emt 0:03:09]} g6 {[%emt 0:04:09]} 27. Kg2 {[%emt 0:00:48]} Ke7 {[%emt 0:01:21]} 28. a3 {[%emt 0:01:38]} a5 {[%emt 0:05:23]} 29. Bc6 {[%emt 0:00:41]} Rb8 {[%emt 0:00:13]} 30. e4 {[%emt 0:00:26]} Be6 {[%emt 0:01:35]} 31. f4 {[%emt 0:00:24]} Kf8 {[%emt 0:00:43]} 32. e5 {[%emt 0:00:22]} Be7 {[%emt 0:00:07]} 33. Bf3 {[%emt 0:00:34]} f6 {[%emt 0:02:44]} 34. Rc2 {[%emt 0:00:22]} fxe5 {[%emt 0:00:37]} 35. fxe5 {[%emt 0:00:32]} Rc8 {[%emt 0:00:05]} 36. Bc6 {[%emt 0:00:34]} Kf7 {[%emt 0:02:07]} 37. Be4 {[%emt 0:00:19]} Bf8 {[%emt 0:03:27]} 38. Rf2+ {[%emt 0:00:58]} Ke7 {[%emt 0:00:06]} 39. Rf6 {[%emt 0:00:28]} Bf7 {[%emt 0:03:01]} 40. Rc6 {[%emt 0:00:22]} Be6 {[%emt 0:01:00]} 41. Rc2 {[%emt 0:12:11]} Bg7 {[%emt 0:01:15]} 42. Bc6 {[%emt 0:06:59]} Bd7 {[%emt 0:10:51]} 43. Bxd7 {[%emt 0:10:30]} Kxd7 {[%emt 0:00:02]} 44. Nd6 {[%emt 0:00:01]} Ra8 {[%emt 0:01:52]} 45. Nc4 {[%emt 0:02:52]} b5 {[%emt 0:00:06]} 46. Nd2 {[%emt 0:00:39]} Bxe5 {[%emt 0:00:16]} 47. Ne4 {[%emt 0:00:26]} a4 {[%emt 0:00:46]} 48. Nc5+ {[%emt 0:00:26]} Kd6 {[%emt 0:01:03]} 49. Nb7+ {[%emt 0:00:02]} Ke6 {[%emt 0:00:37]} 50. Nc5+ {[%emt 0:00:41]} Kd5 {[%emt 0:00:19]} 51. Nd3 {[%emt 0:00:30]} Bd6 {[%emt 0:00:03]} 52. Nb4+ {[%emt 0:00:13]} Kd4 {[%emt 0:00:39]} 53. Rc3 {[%emt 0:00:38]} Bxb4 {[%emt 0:03:13]} 54. axb4 {[%emt 0:00:02]} a3 {[%emt 0:00:08]} 55. Rxa3 {[%emt 0:01:16]} Rxa3 {[%emt 0:00:01]} 56. bxa3 {[%emt 0:00:01]} Kc4 {[%emt 0:00:05]} 57. Kf3 {[%emt 0:01:00]} Kb3 {[%emt 0:00:01]} 58. Kf4 {[%emt 0:00:09]} Kxa3 {[%emt 0:00:04]} 59. Kg5 {[%emt 0:00:06]} Kxb4 {[%emt 0:00:07]} 60. Kxg6 {[%emt 0:00:04]} c5 {[%emt 0:00:47]} 61. h4 {[%emt 0:00:13]} c4 {[%emt 0:00:06]} 62. g4 {[%emt 0:00:03]} hxg4 {[%emt 0:00:29]} 63. h5 {[%emt 0:00:01]} g3 {[%emt 0:00:13]} 0-1

[Event "Netanya Open 2019"]
[Site "Netanya"]
[Date "2019.06.26"]
[Round "4.17"]
[White "Greenfeld, Alon"]
[Black "Lukin, Elisha"]
[Result "1-0"]
[ECO "D47"]
[WhiteElo "2513"]
[BlackElo "2196"]
[Annotator "ChessBase"]
[PlyCount "47"]
[EventDate "2019.06.23"]
[EventType "swiss"]
[EventCountry "ISR"]
[SourceTitle "playchess.com"]
[Source "ChessBase"]
[SourceQuality "1"]
[TimeControl "40/5400+30:1800+30"]

1. d4 {[%emt 0:16:30]} d5 {[%emt 0:00:05]} 2. c4 {[%emt 0:00:13]} c6 {[%emt 0:00:06]} 3. Nf3 {[%emt 0:00:30]} Nf6 {[%emt 0:00:40]} 4. Nc3 {[%emt 0:00:32]} e6 {[%emt 0:00:10]} 5. e3 {[%emt 0:00:40]} Nbd7 {[%emt 0:00:09]} 6. Bd3 {[%emt 0:00:12]} dxc4 {[%emt 0:00:09]} 7. Bxc4 {[%emt 0:00:07]} b5 {[%emt 0:00:05]} 8. Bd3 {[%emt 0:00:53]} Bd6 {[%emt 0:00:19]} 9. Qc2 {[%emt 0:01:29]} Bb7 {[%emt 0:03:30]} 10. e4 {[%emt 0:01:04]} e5 {[%emt 0:00:33]} 11. Bg5 {[%emt 0:00:20]} h6 {[%emt 0:04:21]} 12. Bh4 {[%emt 0:00:26]} O-O {[%emt 0:00:41]} 13. O-O-O {[%emt 0:00:11]} Qb8 {[%emt 0:12:04]} 14. dxe5 {[%emt 1:13:53]} Bxe5 {[%emt 0:00:49]} 15. Nxe5 {[%emt 0:00:00]} Nxe5 {[%emt 0:00:50]} 16. Kb1 {[%emt 0:00:00]} Nfd7 {[%emt 0:21:41]} 17. f4 {[%emt 0:00:00]} Nxd3 {[%emt 0:14:09]} 18. Qxd3 {[%emt 0:00:00]} Nb6 {[%emt 0:13:28]} 19. e5 {[%emt 0:00:00]} Nd5 {[%emt 0:07:48]} 20. Nxd5 {[%emt 0:00:00]} cxd5 {[%emt 0:00:01]} 21. Be7 {[%emt 0:00:00]} Re8 {[%emt 0:00:13]} 22. Bd6 {[%emt 0:00:00]} Qc8 {[%emt 0:03:11]} 23. Rc1 {[%emt 0:00:00]} Qg4 {[%emt 0:00:18]} 24. Qxb5 {[%emt 0:00:00]} 1-0

[Event "Netanya Open 2019"]
[Site "Netanya"]
[Date "2019.06.26"]
[Round "4.19"]
[White "Cohen Revivo, Shoham"]
[Black "Zanan, Evgeny"]
[Result "1/2-1/2"]
[ECO "C45"]
[WhiteElo "2240"]
[BlackElo "2505"]
[Annotator "ChessBase"]
[PlyCount "109"]
[EventDate "2019.06.23"]
[EventType "swiss"]
[EventCountry "ISR"]
[SourceTitle "playchess.com"]
[Source "ChessBase"]
[SourceQuality "1"]
[TimeControl "40/5400+30:1800+30"]

1. e4 {[%emt 0:00:17]} e5 {[%emt 0:00:00]} 2. Nf3 {[%emt 0:00:21]} Nc6 {[%emt 0:00:00]} 3. d4 {[%emt 0:00:05]} exd4 {[%emt 0:00:00]} 4. Nxd4 {[%emt 0:00:26]} Qf6 {[%emt 0:01:20]} 5. Nb5 {[%emt 0:01:41]} Bc5 {[%emt 0:07:18]} 6. Qe2 {[%emt 0:01:00]} Bb6 {[%emt 0:09:23]} 7. N1c3 {[%emt 0:00:08]} Nge7 {[%emt 0:07:08]} 8. h4 {[%emt 0:06:18]} h6 {[%emt 0:21:11]} 9. Nd5 {[%emt 0:07:57]} Nxd5 {[%emt 0:00:33]} 10. exd5+ {[%emt 0:00:15]} Ne7 {[%emt 0:00:06]} 11. Bd2 {[%emt 0:18:02]} d6 {[%emt 0:22:28]} 12. Bc3 {[%emt 0:00:47]} Qf4 {[%emt 0:00:11]} 13. g3 {[%emt 0:03:37]} Qg4 {[%emt 0:05:10]} 14. Qxg4 {[%emt 0:02:26]} Bxg4 {[%emt 0:00:01]} 15. Bxg7 {[%emt 0:00:11]} Rh7 {[%emt 0:02:47]} 16. Bd4 {[%emt 0:00:27]} Ba5+ {[%emt 0:06:12]} 17. Bc3 {[%emt 0:02:33]} Bxc3+ {[%emt 0:00:37]} 18. bxc3 {[%emt 0:02:11]} Bf3 {[%emt 0:02:42]} 19. Rg1 {[%emt 0:00:04]} Nxd5 {[%emt 0:01:22]} 20. c4 {[%emt 0:00:11]} a6 {[%emt 0:05:28]} 21. Nd4 {[%emt 0:00:27]} Nb4 {[%emt 0:00:11]} 22. Nxf3 {[%emt 0:00:22]} Nxc2+ {[%emt 0:00:05]} 23. Kd2 {[%emt 0:00:05]} Nxa1 {[%emt 0:00:04]} 24. Bd3 {[%emt 0:00:03]} Rh8 {[%emt 0:01:02]} 25. Rxa1 {[%emt 0:00:04]} O-O-O {[%emt 0:00:38]} 26. Re1 {[%emt 0:03:04]} Rde8 {[%emt 0:01:05]} 27. Re3 {[%emt 0:04:24]} c6 {[%emt 0:01:01]} 28. Nd4 {[%emt 0:00:20]} Rxe3 {[%emt 0:00:34]} 29. Kxe3 {[%emt 0:00:05]} Kc7 {[%emt 0:00:07]} 30. Nf5 {[%emt 0:03:53]} b5 {[%emt 0:00:20]} 31. Kd4 {[%emt 0:00:41]} f6 {[%emt 0:02:22]} 32. g4 {[%emt 0:01:52]} bxc4 {[%emt 0:02:22]} 33. Bxc4 {[%emt 0:00:48]} d5 {[%emt 0:00:35]} 34. Bxa6 {[%emt 0:01:23]} Ra8 {[%emt 0:00:13]} 35. Be2 {[%emt 0:01:13]} Rxa2 {[%emt 0:00:10]} 36. Ke3 {[%emt 0:00:20]} Ra3+ {[%emt 0:01:39]} 37. Bd3 {[%emt 0:04:21]} c5 {[%emt 0:00:04]} 38. Kd2 {[%emt 0:00:10]} Ra2+ {[%emt 0:01:41]} 39. Bc2 {[%emt 0:02:44]} d4 {[%emt 0:00:00]} 40. Kc1 {[%emt 0:03:32]} Ra1+ {[%emt 0:01:17]} 41. Kb2 {[%emt 0:31:42]} Rf1 {[%emt 0:04:23]} 42. Bd3 {[%emt 0:00:00]} Rxf2+ {[%emt 0:04:30]} 43. Kb3 {[%emt 0:00:00]} Rd2 {[%emt 0:00:55]} 44. Kc4 {[%emt 0:00:00]} Rd1 {[%emt 0:00:53]} 45. Be4 {[%emt 0:00:00]} Rc1+ {[%emt 0:00:29]} 46. Kd3 {[%emt 0:00:00]} Kd7 {[%emt 0:03:52]} 47. Bd5 {[%emt 0:00:00]} Rc3+ {[%emt 0:00:28]} 48. Kd2 {[%emt 0:00:00]} Rh3 {[%emt 0:00:20]} 49. h5 {[%emt 0:00:00]} Kc7 {[%emt 0:00:31]} 50. Be4 {[%emt 0:00:00]} Kb6 {[%emt 0:01:48]} 51. Nxh6 {[%emt 0:00:00]} c4 {[%emt 0:08:23]} 52. Nf7 {[%emt 0:00:00]} Kc5 {[%emt 0:00:04]} 53. h6 {[%emt 0:00:00]} d3 {[%emt 0:00:05]} 54. h7 {[%emt 0:00:00]} Kd4 {[%emt 0:00:27]} 55. Bxd3 {[%emt 0:00:00]} 1/2-1/2

[Event "Netanya Open 2019"]
[Site "Netanya"]
[Date "2019.06.26"]
[Round "4.20"]
[White "Bar, Roman"]
[Black "Guz, Ari"]
[Result "1-0"]
[ECO "A08"]
[WhiteElo "2497"]
[BlackElo "2151"]
[Annotator "ChessBase"]
[PlyCount "47"]
[EventDate "2019.06.23"]
[EventType "swiss"]
[EventCountry "ISR"]
[SourceTitle "playchess.com"]
[Source "ChessBase"]
[SourceQuality "1"]
[TimeControl "40/5400+30:1800+30"]

1. e4 {[%emt 0:00:00]} c5 {[%emt 0:00:32]} 2. Nf3 {[%emt 0:00:25]} e6 {[%emt 0:00:12]} 3. d3 {[%emt 0:00:19]} Nc6 {[%emt 0:00:13]} 4. g3 {[%emt 0:00:09]} d5 {[%emt 0:00:08]} 5. Nbd2 {[%emt 0:00:10]} Bd6 {[%emt 0:00:16]} 6. Bg2 {[%emt 0:00:31]} Nge7 {[%emt 0:00:12]} 7. O-O {[%emt 0:01:05]} O-O {[%emt 0:00:10]} 8. Re1 {[%emt 0:01:31]} Bc7 {[%emt 0:00:20]} 9. Nh4 {[%emt 0:06:48]} b6 {[%emt 0:05:20]} 10. f4 {[%emt 0:02:16]} dxe4 {[%emt 0:06:15]} 11. Bxe4 {[%emt 0:09:25]} Bb7 {[%emt 0:04:29]} 12. a4 {[%emt 0:02:35]} a6 {[%emt 0:09:57]} 13. Nb3 {[%emt 0:02:12]} a5 {[%emt 0:07:49]} 14. Kh1 {[%emt 0:10:20]} Nd5 {[%emt 0:03:30]} 15. f5 {[%emt 0:14:26]} Re8 {[%emt 0:11:40]} 16. Rf1 {[%emt 0:14:01]} e5 {[%emt 0:24:22]} 17. c3 {[%emt 0:13:01]} Nf6 {[%emt 0:04:42]} 18. Bg5 {[%emt 0:00:20]} h6 {[%emt 0:00:14]} 19. Bxf6 {[%emt 0:00:19]} Qxf6 {[%emt 0:00:10]} 20. Qf3 {[%emt 0:00:26]} Rab8 {[%emt 0:02:15]} 21. Nd2 {[%emt 0:00:49]} Bd8 {[%emt 0:02:25]} 22. Nc4 {[%emt 0:01:39]} Bc7 {[%emt 0:01:12]} 23. Ng2 {[%emt 0:03:12]} Nd8 {[%emt 0:00:43]} 24. Nge3 {[%emt 0:01:05]} 1-0

[Event "Netanya Open 2019"]
[Site "Netanya"]
[Date "2019.06.26"]
[Round "4.21"]
[White "Aroesti, Roee"]
[Black "Mindlin, Alon"]
[Result "0-1"]
[ECO "C54"]
[WhiteElo "2233"]
[BlackElo "2454"]
[Annotator "ChessBase"]
[PlyCount "154"]
[EventDate "2019.06.23"]
[EventType "swiss"]
[EventCountry "ISR"]
[SourceTitle "playchess.com"]
[Source "ChessBase"]
[SourceQuality "1"]
[TimeControl "40/5400+30:1800+30"]

1. e4 {[%emt 0:19:08]} e5 {[%emt 0:00:06]} 2. Nf3 {[%emt 0:01:43]} Nc6 {[%emt 0:00:12]} 3. Bc4 {[%emt 0:00:20]} Bc5 {[%emt 0:00:07]} 4. c3 {[%emt 0:00:22]} Nf6 {[%emt 0:00:09]} 5. d4 {[%emt 0:00:06]} exd4 {[%emt 0:00:14]} 6. cxd4 {[%emt 0:00:02]} Bb4+ {[%emt 0:00:23]} 7. Bd2 {[%emt 0:00:05]} Bxd2+ {[%emt 0:01:36]} 8. Nbxd2 {[%emt 0:00:03]} d5 {[%emt 0:00:21]} 9. exd5 {[%emt 0:00:04]} Nxd5 {[%emt 0:00:05]} 10. Qb3 {[%emt 0:00:22]} Na5 {[%emt 0:08:56]} 11. Qa4+ {[%emt 0:00:14]} Nc6 {[%emt 0:02:04]} 12. Qb3 {[%emt 0:00:08]} Nce7 {[%emt 0:02:04]} 13. O-O {[%emt 0:00:12]} O-O {[%emt 0:00:04]} 14. Rfe1 {[%emt 0:00:10]} c6 {[%emt 0:00:58]} 15. Ne4 {[%emt 0:01:44]} a5 {[%emt 0:08:12]} 16. Rac1 {[%emt 0:02:45]} a4 {[%emt 0:16:08]} 17. Qa3 {[%emt 0:01:57]} Ng6 {[%emt 0:00:05]} 18. Nd6 {[%emt 0:13:25]} Ngf4 {[%emt 0:11:22]} 19. g3 {[%emt 0:06:59]} b5 {[%emt 0:12:21]} 20. Bxd5 {[%emt 0:02:02]} Nxd5 {[%emt 0:00:01]} 21. Qc5 {[%emt 0:09:37]} Be6 {[%emt 0:04:23]} 22. a3 {[%emt 0:15:59]} Ra6 {[%emt 0:03:00]} 23. Ne5 {[%emt 0:01:57]} Ne7 {[%emt 0:00:56]} 24. Nd3 {[%emt 0:00:52]} Nd5 {[%emt 0:00:14]} 25. Ne5 {[%emt 0:05:04]} Ne7 {[%emt 0:04:06]} 26. f4 {[%emt 0:00:34]} h6 {[%emt 0:08:21]} 27. Nd3 {[%emt 0:02:08]} Nd5 {[%emt 0:03:05]} 28. Ne5 {[%emt 0:06:32]} Ne7 {[%emt 0:00:37]} 29. Rc2 {[%emt 0:00:13]} Bd5 {[%emt 0:09:43]} 30. Rce2 {[%emt 0:03:43]} Nc8 {[%emt 0:00:01]} 31. Nb7 {[%emt 0:02:33]} Qc7 {[%emt 0:01:34]} 32. Nd3 {[%emt 0:00:24]} Be6 {[%emt 0:00:15]} 33. Qb4 {[%emt 0:01:06]} Qxb7 {[%emt 0:00:54]} 34. Nc5 {[%emt 0:00:04]} Qa7 {[%emt 0:00:02]} 35. Nxa6 {[%emt 0:01:06]} Qxa6 {[%emt 0:00:04]} 36. f5 {[%emt 0:00:02]} Bd7 {[%emt 0:00:03]} 37. Re4 {[%emt 0:03:02]} c5 {[%emt 0:00:45]} 38. dxc5 {[%emt 0:00:35]} Bxf5 {[%emt 0:00:27]} 39. Re8 {[%emt 0:01:02]} Be6 {[%emt 0:00:16]} 40. Rxf8+ {[%emt 0:00:03]} Kxf8 {[%emt 0:00:04]} 41. Rd1 {[%emt 0:12:08]} Qc6 {[%emt 0:01:53]} 42. Rd8+ {[%emt 0:01:47]} Ke7 {[%emt 0:00:16]} 43. Rg8 {[%emt 0:06:31]} g5 {[%emt 0:09:19]} 44. Qd4 {[%emt 0:04:02]} Qd7 {[%emt 0:00:21]} 45. Qe5 {[%emt 0:02:28]} Na7 {[%emt 0:02:48]} 46. Rh8 {[%emt 0:05:59]} Nc6 {[%emt 0:06:26]} 47. Qd6+ {[%emt 0:00:49]} Qxd6 {[%emt 0:00:05]} 48. cxd6+ {[%emt 0:00:01]} Kxd6 {[%emt 0:00:05]} 49. Rxh6 {[%emt 0:00:07]} g4 {[%emt 0:00:04]} 50. Kf2 {[%emt 0:01:49]} Kd5 {[%emt 0:00:14]} 51. Ke3 {[%emt 0:00:38]} Kc4 {[%emt 0:00:12]} 52. Rh5 {[%emt 0:00:35]} b4 {[%emt 0:03:27]} 53. axb4 {[%emt 0:00:28]} Nxb4 {[%emt 0:00:06]} 54. Ra5 {[%emt 0:00:20]} Kb3 {[%emt 0:00:04]} 55. Ra7 {[%emt 0:00:07]} Bd5 {[%emt 0:00:34]} 56. Ra5 {[%emt 0:01:09]} Bc6 {[%emt 0:00:22]} 57. Kf4 {[%emt 0:00:25]} Bd7 {[%emt 0:04:05]} 58. Ra7 {[%emt 0:00:01]} Be6 {[%emt 0:00:05]} 59. Ke3 {[%emt 0:00:33]} Bc4 {[%emt 0:02:45]} 60. Rb7 {[%emt 0:00:57]} Bd5 {[%emt 0:01:39]} 61. Ra7 {[%emt 0:00:29]} Be6 {[%emt 0:04:03]} 62. Rb7 {[%emt 0:00:19]} Kc4 {[%emt 0:00:06]} 63. Ra7 {[%emt 0:00:15]} Kb5 {[%emt 0:01:30]} 64. Rb7+ {[%emt 0:00:10]} Kc5 {[%emt 0:00:05]} 65. Ra7 {[%emt 0:00:11]} Bb3 {[%emt 0:00:14]} 66. Kf4 {[%emt 0:00:45]} Bd1 {[%emt 0:01:04]} 67. Ke3 {[%emt 0:00:55]} Bb3 {[%emt 0:00:54]} 68. Kf4 {[%emt 0:00:04]} Nd3+ {[%emt 0:01:10]} 69. Kxg4 {[%emt 0:00:01]} Nxb2 {[%emt 0:00:05]} 70. h4 {[%emt 0:00:31]} Kb6 {[%emt 0:00:38]} 71. Ra8 {[%emt 0:00:22]} Kb7 {[%emt 0:00:46]} 72. Ra5 {[%emt 0:01:41]} Nc4 {[%emt 0:00:06]} 73. Rb5+ {[%emt 0:00:23]} Kc6 {[%emt 0:00:06]} 74. Rb8 {[%emt 0:00:24]} Nb6 {[%emt 0:01:53]} 75. Re8 {[%emt 0:01:04]} Be6+ {[%emt 0:00:03]} 76. Kg5 {[%emt 0:00:24]} a3 {[%emt 0:00:20]} 77. Rd8 {[%emt 0:00:08]} Bd7 {[%emt 0:00:06]} 0-1

[Event "Netanya Open 2019"]
[Site "Netanya"]
[Date "2019.06.26"]
[Round "4.22"]
[White "Abergel, Thal"]
[Black "Gorshtein, Asaf"]
[Result "1-0"]
[ECO "E60"]
[WhiteElo "2450"]
[BlackElo "2109"]
[Annotator "ChessBase"]
[PlyCount "83"]
[EventDate "2019.06.23"]
[EventType "swiss"]
[EventCountry "ISR"]
[SourceTitle "playchess.com"]
[Source "ChessBase"]
[SourceQuality "1"]
[TimeControl "40/5400+30:1800+30"]

1. Nf3 {[%emt 0:00:00]} Nf6 {[%emt 0:00:00]} 2. c4 {[%emt 0:00:00]} c5 {[%emt 0:00:08]} 3. g3 {[%emt 0:00:28]} g6 {[%emt 0:00:10]} 4. b3 {[%emt 0:01:26]} Bg7 {[%emt 0:01:45]} 5. Bb2 {[%emt 0:00:03]} O-O {[%emt 0:00:42]} 6. Bg2 {[%emt 0:00:21]} Nc6 {[%emt 0:00:35]} 7. O-O {[%emt 0:00:31]} d6 {[%emt 0:01:09]} 8. d4 {[%emt 0:01:38]} cxd4 {[%emt 0:01:19]} 9. Nxd4 {[%emt 0:00:15]} Bd7 {[%emt 0:00:56]} 10. Nc2 {[%emt 0:03:36]} Qc8 {[%emt 0:03:06]} 11. Re1 {[%emt 0:00:23]} Rb8 {[%emt 0:10:59]} 12. Nc3 {[%emt 0:00:32]} Bh3 {[%emt 0:05:06]} 13. Bh1 {[%emt 0:03:51]} Nd7 {[%emt 0:01:59]} 14. Qd2 {[%emt 0:02:32]} Nc5 {[%emt 0:11:48]} 15. Ne3 {[%emt 0:03:14]} Be6 {[%emt 0:08:15]} 16. Ncd5 {[%emt 0:03:19]} Bxd5 {[%emt 0:00:47]} 17. Nxd5 {[%emt 0:00:45]} Qd8 {[%emt 0:01:33]} 18. Rad1 {[%emt 0:06:04]} a5 {[%emt 0:07:16]} 19. Bxg7 {[%emt 0:05:09]} Kxg7 {[%emt 0:00:20]} 20. a3 {[%emt 0:00:54]} Kg8 {[%emt 0:07:00]} 21. b4 {[%emt 0:01:24]} axb4 {[%emt 0:00:30]} 22. axb4 {[%emt 0:00:06]} Nd7 {[%emt 0:01:43]} 23. Rc1 {[%emt 0:10:42]} Nb6 {[%emt 0:04:18]} 24. Ne3 {[%emt 0:03:13]} Qd7 {[%emt 0:02:48]} 25. Red1 {[%emt 0:00:25]} Rfd8 {[%emt 0:01:53]} 26. b5 {[%emt 0:10:23]} Ne5 {[%emt 0:04:33]} 27. f4 {[%emt 0:00:49]} Ng4 {[%emt 0:01:48]} 28. Nxg4 {[%emt 0:02:02]} Qxg4 {[%emt 0:00:06]} 29. Qe3 {[%emt 0:01:32]} Nc8 {[%emt 0:03:23]} 30. c5 {[%emt 0:01:08]} Qd7 {[%emt 0:00:59]} 31. c6 {[%emt 0:14:12]} bxc6 {[%emt 0:00:15]} 32. bxc6 {[%emt 0:00:10]} Qc7 {[%emt 0:00:06]} 33. f5 {[%emt 0:00:31]} Nb6 {[%emt 0:03:30]} 34. Rd4 {[%emt 0:03:26]} Rdc8 {[%emt 0:04:47]} 35. Rh4 {[%emt 0:00:57]} Nd7 {[%emt 0:01:05]} 36. fxg6 {[%emt 0:00:41]} fxg6 {[%emt 0:01:32]} 37. Bd5+ {[%emt 0:01:58]} Kh8 {[%emt 0:00:12]} 38. Qxe7 {[%emt 0:01:50]} Nf8 {[%emt 0:00:09]} 39. Qf6+ {[%emt 0:00:57]} Qg7 {[%emt 0:00:08]} 40. Qxd6 {[%emt 0:00:58]} Rb2 {[%emt 0:01:36]} 41. Bf3 {[%emt 0:35:48]} Qa7+ {[%emt 0:31:05]} 42. Kh1 {[%emt 0:00:35]} 1-0